fUST/lending_fUST_20251018
["ID","MTS","AMOUNT","RATE_DAILY","PERIOD"]
[391738842,1760764240818,-718.34,0.00024657,2]
[391738843,1760764240827,-500.0,0.00024657,2]
[391738844,1760764240837,-500.0,0.00024657,2]
[391738845,1760764240847,-500.0,0.00024657,2]
[391738846,1760764240856,-519.64007627,0.00024657,2]
[391738847,1760764240865,-501.09525737,0.00024657,2]
[391738848,1760764240875,-500.0,0.00024657,2]
[391738849,1760764240884,-500.0,0.00024657,2]
[391738850,1760764240893,-518.82,0.00024657,2]
[391738851,1760764240903,-500.0,0.00024657,2]
[391738852,1760764240913,-500.0,0.00024657,2]
[391738853,1760764240923,-500.0,0.00024657,2]
[391738854,1760764240932,-500.0,0.00024657,2]
[391738855,1760764240941,-500.0,0.00024657,2]
[391738856,1760764240951,-500.0,0.00024657,2]
[391738857,1760764240962,-500.0,0.00024657,2]
[391738858,1760764240972,-500.0,0.00024657,2]
[391738859,1760764240982,-500.0,0.00024657,2]
[391738860,1760764240992,-500.0,0.00024657,2]
[391738861,1760764241002,-500.0,0.00024657,2]
[391738862,1760764241011,-500.0,0.00024657,2]
[391738863,1760764241020,-500.0,0.00024657,2]
[391738864,1760764241029,-500.0,0.00024657,2]
[391738865,1760764241038,-500.0,0.00024657,2]
[391738866,1760764241055,-301.75712309,0.00024657,2]
[391738867,1760764241064,-500.0,0.00024657,2]
[391738868,1760764241073,-500.0,0.00024657,2]
[391738869,1760764241083,-554.08,0.00024657,2]
[391738870,1760764241092,-500.0,0.00024657,2]
[391738871,1760764241101,-500.0,0.00024657,2]
[391738872,1760764241111,-462.59771853,0.00024657,2]
[391738873,1760764241120,-283.80405619,0.00024657,2]
[391738874,1760764241129,-500.0,0.00024657,2]
[391738875,1760764241139,-211.774,0.00024657,7]
[391738876,1760764241151,-500.0,0.00024657,2]
[391738877,1760764241160,-500.0,0.00024657,2]
[391738878,1760764241169,-500.0,0.00024657,2]
[391738879,1760764241179,-500.0,0.00024657,2]
[391738880,1760764241188,-306.52787186,0.00024657,2]
[391738881,1760764241199,-500.0,0.00024657,2]
[391738882,1760764241209,-500.0,0.00024657,2]
[391738883,1760764241219,-354.99049543,0.00024657,2]
[391738884,1760764241229,-500.0,0.00024657,2]
[391738885,1760764241239,-500.0,0.00024657,2]
[391738886,1760764241248,-500.0,0.00024657,2]
[391738887,1760764241258,-500.0,0.00024657,2]
[391738888,1760764241268,-900.6,0.00024657,2]
[391738889,1760764241278,-266.1419885,0.00024657,2]
[391738890,1760764241287,-504.50873208,0.00024657,2]
[391738891,1760764241296,-500.0,0.00024657,2]
[391738892,1760764241305,-500.0,0.00024657,2]
[391738893,1760764241315,-500.0,0.00024657,2]
[391738894,1760764241325,-356.19188027,0.00024657,2]
[391738895,1760764241335,-528.2,0.00024657,2]
[391738896,1760764241344,-500.0,0.00024657,2]
[391738897,1760764241483,-492.39482735,0.00024657,2]
[391738898,1760764241493,-500.0,0.00024657,2]
[391738899,1760764241503,-379.17964891,0.00024657,2]
[391738900,1760764241512,-500.0,0.00024657,2]
[391738901,1760764241521,-1527.7,0.00024657,2]
[391738902,1760764241530,-500.0,0.00024657,2]
[391738903,1760764241540,-500.0,0.00024657,2]
[391738904,1760764241550,-647.31782597,0.00024657,2]
[391738905,1760764241559,-540.3,0.00024657,2]
[391738906,1760764241568,-383.28199226,0.00024657,2]
[391738907,1760764241578,-861.89,0.00024657,2]
[391738908,1760764241587,-445.36494108,0.00024657,2]
[391738909,1760764241596,-500.0,0.00024657,2]
[391738910,1760764241605,-351.5757842,0.00024657,2]
[391738911,1760764241614,-500.0,0.00024657,2]
[391738912,1760764241623,-426.6559465,0.00024657,2]
[391738913,1760764241633,-500.0,0.00024657,2]
[391738914,1760764241643,-500.0,0.00024657,2]
[391738915,1760764241652,-506.76,0.00024657,2]
[391738916,1760764241661,-1217.62,0.00024657,2]
[391738917,1760764241671,-500.0,0.00024657,2]
[391738918,1760764241680,-500.0,0.00024657,2]
[391738919,1760764241689,-500.0,0.00024657,2]
[391738920,1760764241699,-500.0,0.00024657,2]
[391738921,1760764241708,-1000.0,0.00024657,2]
[391738922,1760764241717,-500.0,0.00024657,2]
[391738923,1760764241727,-1238.0,0.00024657,2]
[391738924,1760764241736,-502.4393364,0.00024657,2]
[391738925,1760764241745,-500.0,0.00024657,2]
[391738926,1760764241754,-266.84105302,0.00024657,2]
[391738927,1760764241764,-470.77939847,0.00024657,2]
[391738928,1760764241773,-500.0,0.00024657,2]
[391738929,1760764241782,-654.36,0.00024657,2]
[391738930,1760764241791,-500.0,0.00024657,2]
[391738931,1760764241801,-474.90640711,0.00024657,2]
[391738932,1760764241810,-500.0,0.00024657,2]
[391738933,1760764241819,-507.41,0.00024657,2]
[391738934,1760764241829,-500.0,0.00024657,2]
[391738935,1760764241838,-500.0,0.00024657,2]
[391738936,1760764241847,-500.0,0.00024657,2]
[391738937,1760764241857,-500.0,0.00024657,2]
[391738938,1760764241867,-1376.57,0.00024657,2]
[391738939,1760764241876,-500.0,0.00024657,2]
[391738940,1760764241885,-500.0,0.00024657,2]
[391738941,1760764241895,-500.0,0.00024657,2]
[391738942,1760764241905,-500.0,0.00024657,2]
[391738943,1760764241915,-490.10298562,0.00024657,2]
[391738944,1760764241925,-500.0,0.00024657,2]
[391738945,1760764241934,-500.0,0.00024657,2]
[391738946,1760764241944,-500.0,0.00024657,2]
[391738947,1760764241953,-288.86859443,0.00024657,2]
[391738948,1760764242426,-211.13140557,0.00024657,2]
[391738950,1760764242459,-500.0,0.00024657,2]
[391738955,1760764242491,-500.0,0.00024657,2]
[391738963,1760764242524,-500.0,0.00024657,2]
[391738972,1760764242556,-320.32310687,0.00024657,2]
[391738976,1760764242588,-500.0,0.00024657,2]
[391738979,1760764242620,-500.0,0.00024657,2]
[391738980,1760764242651,-500.0,0.00024657,2]
[391738981,1760764242682,-500.0,0.00024657,2]
[391738986,1760764242714,-530.15402645,0.00024657,2]
[391738987,1760764242746,-223.07172999,0.00024657,2]
[391739001,1760764245052,-500.0,0.00024657,2]
[391739002,1760764245096,-500.0,0.00024657,2]
[391739003,1760764245139,-177.81778695,0.00024657,2]
[391739004,1760764245188,-500.0,0.00024657,2]
[391739005,1760764245231,-150.79373359,0.00024657,2]
[391739006,1760764245275,-500.0,0.00024657,2]
[391739007,1760764245316,-500.0,0.00024657,2]
[391739008,1760764245355,-500.0,0.00024657,2]
[391739009,1760764245394,-500.0,0.00024657,2]
[391739010,1760764245433,-500.0,0.00024657,2]
[391739011,1760764245465,-487.78766327,0.00024657,2]
[391739012,1760764245510,-500.0,0.00024657,2]
[391739013,1760764245542,-500.0,0.00024657,2]
[391739033,1760764245830,-510.63274292,0.00024657,2]
[391739038,1760764245872,-500.0,0.00024657,2]
[391739043,1760764245904,-255.19188863,0.00024657,2]
[391739047,1760764245935,-500.0,0.00024657,2]
[391739052,1760764245970,-500.0,0.00024657,2]
[391739056,1760764246004,-481.04840729,0.00024657,2]
[391739061,1760764246036,-500.0,0.00024657,2]
[391739065,1760764246067,-504.34,0.00024657,2]
[391739079,1760764246452,-3e-08,0.00024657,2]
[391739080,1760764246546,-499.99999997,0.00024657,2]
[391739081,1760764246578,-500.0,0.00024657,2]
[391739082,1760764246608,-500.0,0.00024657,2]
[391739083,1760764246640,-500.0,0.00024657,2]
[391739084,1760764246672,-700.14,0.00024657,2]
[391739085,1760764246702,-407.49099325,0.00024657,2]
[391739086,1760764246731,-500.0,0.00024657,2]
[391739087,1760764246761,-503.1271781,0.00024657,2]
[391739088,1760764246791,-500.0,0.00024657,2]
[391739089,1760764246820,-278.49365736,0.00024657,2]
[391739090,1760764246894,-221.50634264,0.00024657,2]
[391739091,1760764246925,-500.0,0.00024657,2]
[391739092,1760764246957,-500.0,0.00024657,2]
[391739093,1760764246989,-500.0,0.00024657,2]
[391739094,1760764247020,-500.0,0.00024657,2]
[391739095,1760764247052,-430.71764083,0.00024657,2]
[391739096,1760764247084,-500.0,0.00024657,2]
[391739097,1760764247116,-500.0,0.00024657,2]
[391739098,1760764247148,-262.19762613,0.00024657,2]
[391739099,1760764247181,-822.3967808,0.00024657,2]
[391739100,1760764249194,-256.54524089,0.0002399,2]
[391739101,1760764249228,-526.3732192,0.00024657,2]
[391739102,1760764249261,-295.85371913,0.00024657,2]
[391739103,1760764249295,-2414.59,0.00024657,2]
[391739104,1760764249329,-282.34332874,0.00024657,2]
[391739105,1760764249362,-299.57111697,0.00024657,2]
[391739106,1760764249394,-500.0,0.00024657,2]
[391739107,1760764249428,-161.26756307,0.00024657,2]
[391739108,1760764249460,-26.921624,0.00024657,2]
[391739109,1760764249887,-473.078376,0.00024657,2]
[391739110,1760764249918,-374.81936039,0.00024657,2]
[391739111,1760764249951,-500.0,0.00024657,2]
[391739112,1760764249984,-500.0,0.00024657,2]
[391739113,1760764250018,-500.0,0.00024657,2]
[391739114,1760764250051,-500.0,0.00024657,2]
[391739115,1760764250085,-500.0,0.00024657,2]
[391739116,1760764250118,-500.0,0.00024657,2]
[391739117,1760764250152,-500.0,0.00024657,2]
[391739118,1760764250185,-500.0,0.00024657,2]
[391739119,1760764250327,-500.0,0.00024657,2]
[391739120,1760764250357,-459.82908688,0.00024657,2]
[391739121,1760764250389,-1334.64,0.00024657,2]
[391739122,1760764250421,-500.0,0.00024657,2]
[391739123,1760764250454,-500.0,0.00024657,2]
[391739124,1760764250486,-616.85422192,0.00024657,2]
[391739125,1760764250518,-500.0,0.00024657,2]
[391739126,1760764250551,-458.66565012,0.00024657,2]
[391739127,1760764250596,-773.66,0.00024657,2]
[391739128,1760764250629,-500.0,0.00024657,2]
[391739129,1760764250661,-500.0,0.00024657,2]
[391739130,1760764250693,-500.0,0.00024657,2]
[391739131,1760764250724,-500.0,0.00024657,2]
[391739132,1760764250756,-601.68406086,0.00024657,2]
[391739133,1760764250787,-632.1,0.00024657,2]
[391739134,1760764250818,-259.30037156,0.00024657,2]
[391739135,1760764250850,-252.78295918,0.00024657,2]
[391739136,1760764250897,-1106.96,0.00024657,2]
[391739137,1760764250929,-484.29883622,0.00024657,2]
[391739138,1760764250963,-500.0,0.00024657,2]
[391739139,1760764250995,-500.0,0.00024657,2]
[391739140,1760764251027,-500.0,0.00024657,2]
[391739141,1760764251060,-470.74962897,0.00024657,2]
[391739142,1760764251091,-492.47989854,0.00024657,2]
[391739143,1760764251122,-500.0,0.00024657,2]
[391739144,1760764251154,-391.03327254,0.00024657,2]
[391739145,1760764251397,-108.96672746,0.00024657,2]
[391739146,1760764251429,-500.0,0.00024657,2]
[391739147,1760764251460,-500.0,0.00024657,2]
[391739148,1760764251491,-286.77438362,0.00024657,2]
[391739149,1760764251523,-500.0,0.00024657,2]
[391739150,1760764251554,-500.0,0.00024657,2]
[391739151,1760764251585,-500.0,0.00024657,2]
[391739152,1760764251617,-500.0,0.00024657,2]
[391739153,1760764251648,-612.93603313,0.00024657,2]
[391739154,1760764251677,-286.74993965,0.00024657,2]
[391739155,1760764251706,-500.0,0.00024657,2]
[391739156,1760764252830,-150.0,0.00019113,2]
[391739157,1760764252864,-155.97,0.00020024,2]
[391739158,1760764252896,-826.69,0.00024657,2]
[391739159,1760764252928,-500.0,0.00024657,2]
[391739160,1760764252961,-500.0,0.00024657,2]
[391739161,1760764252991,-906.48,0.00024657,2]
[391739162,1760764253021,-500.0,0.00024657,2]
[391739163,1760764253052,-500.0,0.00024657,2]
[391739164,1760764253083,-82.42,0.00024657,2]
[391739165,1760764254142,-166.2944247,0.00020934,2]
[391739166,1760764255844,-67.6555753,0.00020934,2]
[391739167,1760764255878,-311.94,0.00021844,2]
[391739168,1760764255912,-389.92,0.00022754,2]
[391739169,1760764255946,-467.91,0.00023664,2]
[391739170,1760764255979,-545.89,0.00024574,2]
[391739171,1760764256010,-1756.89,0.00024657,2]
[391739172,1760764256041,-1135.09,0.00024657,2]
[391739173,1760764256073,-149.4188494,0.00024657,2]
[391739174,1760764256119,-350.5811506,0.00024657,2]
[391739175,1760764256153,-500.0,0.00024657,2]
[391739176,1760764256186,-500.0,0.00024657,2]
[391739177,1760764256219,-500.0,0.00024657,2]
[391739178,1760764256250,-1098.52,0.00024657,2]
[391739179,1760764256286,-500.0,0.00024657,2]
[391739180,1760764256320,-500.0,0.00024657,2]
[391739181,1760764256352,-493.17102773,0.00024657,2]
[391739182,1760764256383,-500.0,0.00024657,2]
[391739183,1760764256430,-500.0,0.00024657,2]
[391739184,1760764256461,-500.0,0.00024657,2]
[391739185,1760764256492,-500.0,0.00024657,2]
[391739186,1760764256523,-500.0,0.00024657,2]
[391739187,1760764256554,-1482.0,0.00024657,2]
[391739188,1760764256588,-500.0,0.00024657,2]
[391739189,1760764256621,-500.0,0.00024657,2]
[391739190,1760764256669,-1776.3,0.00024657,2]
[391739191,1760764256699,-519.56617309,0.00024657,2]
[391739192,1760764256728,-500.0,0.00024657,2]
[391739193,1760764256758,-500.0,0.00024657,2]
[391739194,1760764256788,-500.0,0.00024657,2]
[391739195,1760764256818,-500.0,0.00024657,2]
[391739196,1760764256862,-1613.51,0.00024657,2]
[391739197,1760764256893,-500.0,0.00024657,2]
[391739198,1760764256922,-500.0,0.00024657,2]
[391739199,1760764256951,-500.0,0.00024657,2]
[391739200,1760764256981,-1370.41,0.00024657,2]
[391739201,1760764257101,-1551.04,0.00024657,2]
[391739202,1760764257130,-1180.71,0.00024657,2]
[391739203,1760764257162,-502.85704475,0.00024657,2]
[391739204,1760764257195,-500.0,0.00024657,2]
[391739205,1760764257225,-500.0,0.00024657,2]
[391739206,1760764257255,-500.0,0.00024657,2]
[391739207,1760764257521,-625.14,0.00024657,2]
[391739208,1760764257555,-323.29554294,0.00024657,2]
[391739209,1760764257588,-450.39198376,0.00024657,2]
[391739210,1760764257739,-512.68516319,0.00024657,2]
[391739211,1760764257772,-500.0,0.00024657,2]
[391739212,1760764257804,-500.0,0.00024657,2]
[391739213,1760764257835,-500.0,0.00024657,2]
[391739214,1760764257866,-896.03,0.00024657,2]
[391739215,1760764257896,-301.16598155,0.00024657,2]
[391739216,1760764257927,-282.59265712,0.00024657,2]
[391739217,1760764258060,-217.40734288,0.00024657,2]
[391739218,1760764258093,-500.0,0.00024657,2]
[391739219,1760764258125,-777.82,0.00024657,2]
[391739220,1760764258157,-500.0,0.00024657,2]
[391739221,1760764258189,-500.0,0.00024657,2]
[391739222,1760764258221,-500.0,0.00024657,2]
[391739223,1760764258252,-500.0,0.00024657,2]
[391739224,1760764258282,-215.41505488,0.00024657,2]
[391739225,1760764258313,-500.0,0.00024657,2]
[391739226,1760764258343,-386.14995092,0.00024657,2]
[391739227,1760764258373,-306.42530264,0.00024657,2]
[391739228,1760764258411,-193.57469736,0.00024657,2]
[391739229,1760764258443,-2384.24,0.00024657,2]
[391739230,1760764258473,-500.0,0.00024657,2]
[391739231,1760764258503,-1841.13,0.00024657,2]
[391739232,1760764258545,-800.88,0.00024657,2]
[391739233,1760764258576,-394.38154538,0.00024657,2]
[391739234,1760764258606,-722.4,0.00024657,2]
[391739235,1760764258637,-1094.97,0.00024657,2]
[391739236,1760764258667,-580.0,0.00024657,2]
[391739237,1760764258697,-500.0,0.00024657,2]
[391739238,1760764258727,-500.0,0.00024657,2]
[391739239,1760764258758,-314.74690924,0.00024657,2]
[391739240,1760764258797,-185.25309076,0.00024657,2]
[391739241,1760764258827,-979.75,0.00024657,2]
[391739242,1760764258857,-154.73715117,0.00024657,2]
[391739243,1760764258887,-500.0,0.00024657,2]
[391739244,1760764258918,-457.67135423,0.00024657,2]
[391739245,1760764258949,-500.0,0.00024657,2]
[391739246,1760764258978,-500.0,0.00024657,2]
[391739247,1760764259009,-500.0,0.00024657,2]
[391739248,1760764259038,-502.42331847,0.00024657,2]
[391739249,1760764259080,-2555.87,0.00024657,2]
[391739250,1760764259110,-500.0,0.00024657,2]
[391739251,1760764259140,-547.93,0.00024657,2]
[391739252,1760764259174,-500.0,0.00024657,2]
[391739253,1760764259205,-409.0,0.00024657,2]
[391739254,1760764259310,-974.41,0.00024657,2]
[391739255,1760764259349,-500.0,0.00024657,2]
[391739256,1760764259385,-2100.82,0.00024657,2]
[391739257,1760764259418,-1077.52,0.00024657,2]
[391739258,1760764259449,-245.4237881,0.00024657,2]
[391739259,1760764259483,-45.75325967,0.00024657,2]
[391739263,1760764265056,-661.67178656,0.000233,2]
[391739264,1760764265090,-112.15590446,0.00024657,2]
[391739265,1760764265123,-510.13295625,0.00024657,2]
[391739266,1760764265160,-1637.39,0.00024657,2]
[391739267,1760764265195,-500.0,0.00024657,2]
[391739268,1760764265228,-500.0,0.00024657,2]
[391739269,1760764265259,-500.0,0.00024657,2]
[391739270,1760764265290,-500.0,0.00024657,2]
[391739273,1760764267290,-622.2210821,0.00024557,3]
[391739274,1760764267356,-10000.01,0.00024557,3]
[391739275,1760764267403,-10000.01,0.00024557,3]
[391739276,1760764267443,-1387.77133001,0.00024557,3]
[391739277,1760764267475,-7224.46733998,0.00024557,3]
[391739278,1760764267484,-1000.0,0.00024657,2]
[391739279,1760764267494,-387.77133001,0.00024657,2]
[391739280,1760764267518,-112.22866999,0.00024657,2]
[391739281,1760764267527,-3115.74,0.00024657,2]
[391739282,1760764267536,-500.0,0.00024657,2]
[391739283,1760764267546,-500.0,0.00024657,2]
[391739284,1760764267555,-500.0,0.00024657,2]
[391739285,1760764267565,-1506.93,0.00024657,2]
[391739286,1760764267574,-195.96891282,0.00024657,2]
[391739287,1760764267584,-555.08,0.00024657,2]
[391739288,1760764267593,-497.07726695,0.00024657,2]
[391739289,1760764267603,-500.0,0.00024657,2]
[391739290,1760764267613,-500.0,0.00024657,2]
[391739291,1760764267622,-500.0,0.00024657,2]
[391739292,1760764267631,-602.28685147,0.00024657,2]
[391739293,1760764267640,-414.69829877,0.00024657,2]
[391739294,1760764267678,-85.30170123,0.00024657,2]
[391739295,1760764267709,-500.0,0.00024657,2]
[391739296,1760764267739,-478.49507464,0.00024657,2]
[391739297,1760764267769,-500.0,0.00024657,2]
[391739298,1760764267798,-1000.0,0.00024657,2]
[391739299,1760764267828,-500.0,0.00024657,2]
[391739300,1760764267858,-500.0,0.00024657,2]
[391739301,1760764267889,-500.0,0.00024657,2]
[391739302,1760764267919,-500.0,0.00024657,2]
[391739303,1760764267950,-372.41644826,0.00024657,2]
[391739304,1760764268046,-127.58355174,0.00024657,2]
[391739305,1760764268055,-468.42908662,0.00024657,2]
[391739306,1760764268065,-1700.65,0.00024657,2]
[391739307,1760764268075,-500.0,0.00024657,2]
[391739308,1760764268084,-500.0,0.00024657,2]
[391739309,1760764268094,-500.0,0.00024657,2]
[391739310,1760764268104,-1267.13413751,0.00024657,2]
[391739311,1760764268125,-754.03586249,0.00024657,2]
[391739312,1760764268135,-500.0,0.00024657,2]
[391739313,1760764268144,-500.0,0.00024657,2]
[391739314,1760764268154,-500.0,0.00024657,2]
[391739315,1760764268166,-625.52,0.00024657,2]
[391739316,1760764268175,-500.0,0.00024657,2]
[391739317,1760764268184,-500.0,0.00024657,2]
[391739318,1760764268193,-2022.18,0.00024657,2]
[391739319,1760764268203,-500.0,0.00024657,2]
[391739320,1760764268213,-2210.5028075,0.00024657,2]
[391739321,1760764268250,-125.6571925,0.00024657,2]
[391739322,1760764268285,-1477.04,0.00024657,2]
[391739323,1760764268318,-500.0,0.00024657,2]
[391739324,1760764268350,-500.0,0.00024657,2]
[391739325,1760764268382,-500.0,0.00024657,2]
[391739326,1760764268415,-267.12130933,0.00024657,2]
[391739327,1760764268447,-500.0,0.00024657,2]
[391739328,1760764268480,-500.0,0.00024657,2]
[391739329,1760764268512,-373.57299634,0.00024657,2]
[391739330,1760764268592,-513.22700366,0.00024657,2]
[391739331,1760764268624,-500.0,0.00024657,2]
[391739332,1760764268655,-2122.96,0.00024657,2]
[391739333,1760764268686,-1402.43599268,0.00024657,2]
[391739334,1760764269102,-226.68820348,0.00024657,2]
[391739335,1760764269121,-696.07580384,0.00024657,2]
[391739336,1760764269131,-190.72419616,0.00024657,2]
[391739337,1760764269159,-513.22700366,0.00024657,2]
[391739338,1760764269179,-500.0,0.00024657,2]
[391739339,1760764269199,-378.88880018,0.00024657,2]
[391739340,1760764269209,-327.85166681,0.00024657,2]
[391739341,1760764269218,-500.0,0.00024657,2]
[391739342,1760764269228,-500.0,0.00024657,2]
[391739343,1760764269239,-416.21953301,0.00024657,2]
[391739344,1760764269260,-272.81046699,0.00024657,2]
[391739345,1760764269269,-481.81365062,0.00024657,2]
[391739346,1760764269278,-500.0,0.00024657,2]
[391739347,1760764269287,-500.0,0.00024657,2]
[391739348,1760764269297,-500.0,0.00024657,2]
[391739349,1760764269311,-70.57588239,0.00024657,2]
[391739350,1760764287976,300.0,0.000159,2]
[391739351,1760764301716,300.0,0.000159,2]
[391739352,1760764315104,300.0,0.000159,2]
[391739353,1760764328179,150.0,0.00019078,2]
[391739354,1760764328693,251.29,0.00019986,2]
[391739355,1760764329094,376.93,0.00020895,2]
[391739356,1760764329178,300.0,0.000159,2]
[391739357,1760764340719,-382.3986945,0.00021803,2]
[391739358,1760764342022,300.0,0.000159,2]
[391739359,1760764343848,-120.1813055,0.00021803,2]
[391739360,1760764343871,-90.92782669,0.0002197,2]
[391739361,1760764345441,-182.98760789,0.0002197,2]
[391739362,1760764347501,196.0,0.0001551,2]
[391739363,1760764347605,196.0,0.00015564,2]
[391739364,1760764347696,196.0,0.00015618,2]
[391739365,1760764347779,196.0,0.00015672,2]
[391739366,1760764347856,196.0,0.00015726,2]
[391739367,1760764347931,196.0,0.0001578,2]
[391739368,1760764347992,-170.05955477,0.0002197,2]
[391739369,1760764348024,196.0,0.00015834,2]
[391739370,1760764348096,196.0,0.00015888,2]
[391739371,1760764348180,196.0,0.00015942,2]
[391739372,1760764348454,196.0,0.00015996,2]
[391739373,1760764348550,196.0,0.0001605,2]
[391739374,1760764348669,196.0,0.00016104,2]
[391739375,1760764348804,196.0,0.00016158,2]
[391739376,1760764348888,196.0,0.00016211,2]
[391739377,1760764349093,196.0,0.00016265,2]
[391739378,1760764349176,196.0,0.00016319,2]
[391739379,1760764349402,196.0,0.00016373,2]
[391739380,1760764349491,196.0,0.00016427,2]
[391739381,1760764349575,196.0,0.00016481,2]
[391739382,1760764349663,196.0,0.00016535,2]
[391739383,1760764349933,196.0,0.00016589,2]
[391739384,1760764350014,196.0,0.00016643,2]
[391739385,1760764350114,196.0,0.00016697,2]
[391739386,1760764350185,196.0,0.00016751,2]
[391739387,1760764350231,300.0,0.000159,2]
[391739388,1760764350274,196.0,0.00016805,2]
[391739389,1760764350493,196.0,0.00016859,2]
[391739390,1760764350541,196.0,0.00016913,2]
[391739391,1760764350581,196.0,0.00016967,2]
[391739392,1760764350620,196.0,0.00017021,2]
[391739393,1760764350658,196.0,0.00017075,2]
[391739394,1760764350731,196.0,0.00017129,2]
[391739395,1760764350808,196.0,0.00017183,2]
[391739396,1760764350890,196.0,0.00017237,2]
[391739397,1760764350974,196.0,0.00017291,2]
[391739398,1760764351060,196.0,0.00017345,2]
[391739399,1760764351142,196.0,0.00017399,2]
[391739400,1760764351225,196.0,0.00017453,2]
[391739401,1760764351314,169.79,0.00017506,2]
[391739402,1760764351341,26.21,0.00017506,2]
[391739403,1760764351396,196.0,0.0001756,2]
[391739404,1760764351643,196.0,0.00017614,2]
[391739405,1760764351741,196.0,0.00017668,2]
[391739406,1760764351809,196.0,0.00017722,2]
[391739407,1760764351886,196.0,0.00017776,2]
[391739408,1760764352120,196.0,0.0001783,2]
[391739409,1760764352201,196.0,0.00017884,2]
[391739410,1760764352296,196.0,0.00017938,2]
[391739411,1760764352336,196.0,0.00017992,2]
[391739412,1760764352401,196.0,0.00018046,2]
[391739413,1760764352470,362.38062782,0.000181,2]
[391739414,1760764356720,300.0,0.000159,2]
[391739415,1760764363722,300.0,0.000159,2]
[391739416,1760764368846,3012.2478852,0.00019178,2]
[391739417,1760764369171,300.0,0.000159,2]
[391739418,1760764377849,300.0,0.000159,2]
[391739419,1760764378452,-261.66799526,0.0002197,2]
[391739420,1760764385481,-187.04683,0.0002197,2]
[391739421,1760764385970,300.0,0.000159,2]
[391739422,1760764393198,300.0,0.000159,2]
[391739423,1760764394398,-330.702105,0.0002197,2]
[391739424,1760764399090,300.0,0.000159,2]
[391739425,1760764407666,300.0,0.000159,2]
[391739426,1760764412030,300.0,0.000159,2]
[391739427,1760764413788,175.69,0.00019502,2]
[391739428,1760764414287,351.37,0.00020431,2]
[391739429,1760764415592,-368.99,0.00021359,2]
[391739430,1760764422364,300.0,0.000159,2]
[391739431,1760764425864,300.0,0.000159,2]
[391739432,1760764437163,300.0,0.000159,2]
[391739433,1760764438019,-158.07,0.00021359,2]
[391739434,1760764438041,-65.16,0.0002197,2]
[391739435,1760764440442,-167.36751622,0.0002197,2]
[391739436,1760764440609,300.0,0.000159,2]
[391739437,1760764445485,-298.48259625,0.0002197,2]
[391739438,1760764449916,212.11148698,0.000159,2]
[391739439,1760764449946,87.88851302,0.000159,2]
[391739440,1760764454260,300.0,0.000159,2]
[391739441,1760764463190,300.0,0.000159,2]
[391739442,1760764467686,196.0,0.0001551,2]
[391739443,1760764467720,292.51903139,0.000181,2]
[391739444,1760764490481,-182.27558414,0.00021626,2]
[391739445,1760764492313,-160.84369204,0.00021626,2]